Cogmind - Beta 15 @@@ ROGUE MODE // 2025.05.13 @ 23:49:45 Player: Epsilon 11 Result: Destroyed by S-10 Pest with Light Assault Rifle Performance ------------- Evolutions (0) 0 Regions Visited (3) 600 Robots Destroyed (9) 45 Value Destroyed (150) 150 Prototype IDs (0) 0 Alien Tech Used (0) 0 Bonus (0) 0 TOTAL SCORE: 795 Bonus ------- None Cogmind --------- Core Integrity 0/250 Matter 290/300 Energy 100/100 System Corruption 0% Temperature Cool (0) Movement Core (100) Ox1 Location -10/Subcaves Parts ------- > --- POWER (1) -------- (None) > --- PROPULSION (2) --- (None) > --- UTILITY (2) ------ Small Storage Unit > --- WEAPON (2) ------- (None) > --- INVENTORY (8) ---- (None) Peak State ------------ > --- POWER ------------ Ion Engine > --- PROPULSION ------- Wheel Compact Wheel > --- UTILITY ---------- Small Storage Unit Medium Storage Unit > --- WEAPON ----------- EM Pulse Gun Medium Laser > --- INVENTORY -------- Medium Laser [Rating: 7] Favorites ----------- Power Ion Engine Engine Ion Engine Propulsion Wheel Wheel Wheel Utility Small Storage Unit Storage Small Storage Unit Weapon EM Pulse Gun Energy Gun EM Pulse Gun Build | -11 -10 -10 -10 ------- Run | Yrd Mat Min Sub Slots Evolved . | . . . . Power . | . . . . Propulsion . | . . . . Utility . | . . . . Weapon . | . . . . Parts Attached 8 | 6 1 . 1 Power 1 | 1 . . . Engine 1 | 1 . . . Core . | . . . . Reactor . | . . . . Propulsion 2 | 2 . . . Treads . | . . . . Leg . | . . . . Wheel 2 | 2 . . . Hover . | . . . . Flight . | . . . . Utility 2 | 1 1 . . Device . | . . . . Storage 2 | 1 1 . . Processor . | . . . . Hackware . | . . . . Protection . | . . . . Artifact . | . . . . Weapon 3 | 2 . . 1 Energy Gun 3 | 2 . . 1 Energy Cannon . | . . . . Ballistic Gun . | . . . . Ballistic Cannon . | . . . . Launcher . | . . . . Special Weapon . | . . . . Impact Weapon . | . . . . Slashing Weapon . | . . . . Piercing Weapon . | . . . . Special Melee Weapon . | . . . . Unidentified Prototypes . | . . . . Parts Lost 5 | . 1 1 3 Power 1 | . . . 1 Propulsion 2 | . 1 . 1 Utility . | . . . . Weapon 2 | . . 1 1 Highest Loss Streak 2 | . 1 1 2 To Critical Strikes . | . . . . Average Backups . | . 1 1 . Power . | . . . . Propulsion . | . . . . Utility . | . . . . Weapon . | . . 1 . Tool/Special . | . . . . Unused Backups . | . . . . Power . | . . . . Propulsion . | . . . . Utility . | . . . . Weapon . | . . . . Tool/Special . | . . . . Average Slot Usage (%) 77 | . 80 80 70 Engine 12 | . 14 14 8 Wheel 16 | . 20 14 12 Storage 23 | . 17 28 26 Energy Gun 24 | . 27 23 22 Peak Build Rating 7 | 6 7 6 6 Average Rating 5 | 4 5 5 5 On Entrance 4 | . 6 6 5 Naked Turns . | . . . . Heaviest Build 24 | 14 24 24 24 Greatest Support 26 | 26 26 10 10 Greatest Overweight (x) 5 | . 2 2 5 Average Overweight (x) 1 | . . 2 1 Largest Inventory Capacity 10 | 8 10 10 10 Average Capacity 9 | 6 9 10 9 Most Carried 2 | . 2 1 . Average Carried . | . 1 1 . Final Capacity 10 | 8 10 10 8 Final Carried 1 | . 1 1 . Class Distribution -------------------- 100% | Mutant Dominant Class ---------------- Mutant | -10/Materials Mutant | -10/Mines Mutant | -10/Subcaves Resources | -11 -10 -10 -10 ----------- Run | Yrd Mat Min Sub Matter Collected 275 | 248 27 . . Remotely . | . . . . Salvage Created 308 | . 308 . . Parts 20 | . 20 . . Haulers Intercepted 2 | . 2 . . Recyclers Shooed 1 | . 1 . . Parts Field Recycled . | . . . . Retrieved Matter . | . . . . Parts Self-Destructed . | . . . . Prevented . | . . . . Kills | -11 -10 -10 -10 ------- Run | Yrd Mat Min Sub Combat Hostiles Destroyed 6 | . 6 . . Guns 3 | . 3 . . AOE 3 | . 3 . . Classes Destroyed 4 | . 4 . . Worker 1 | . 1 . . Hauler 2 | . 2 . . Swarmer 3 | . 3 . . Grunt 3 | . 3 . . Best Kill Streak 4 | . 4 . . Combat Bots Only 3 | . 3 . . Max Kills in Single Turn 2 | . 2 . . Gunslinging . | . . . . Exploded 2 | . 2 . . Melee . | . . . . Uniques/NPCs Destroyed . | . . . . Combat | -11 -10 -10 -10 -------- Run | Yrd Mat Min Sub Hostile Shots Fired 60 | . 21 8 31 Missed 22 | . 5 5 12 Hits 38 | . 16 3 19 Projectile 38 | . 16 3 19 Critical Strikes 1 | . 1 . . Damage Taken 622 | . 298 44 280 Core 251 | . 76 17 158 Absorbed by Shields . | . . . . Core Remaining (%) 100 | 100 . . . Volleys Fired 23 | . 23 . . Largest 2 | . 2 . . Hottest 90 | . 90 . . Shots Fired 46 | . 46 . . Gun 46 | . 46 . . Cannon . | . . . . Launcher . | . . . . Special . | . . . . Kinetic . | . . . . Thermal 23 | . 23 . . Explosive . | . . . . Electromagnetic 23 | . 23 . . Robot Hit Streak 11 | . 11 . . Robot Miss Streak 3 | . 3 . . Penetration Max . | . . . . Secondary Targets . | . . . . Shots Hit Robots 27 | . 27 . . Core Hits 12 | . 12 . . Critical Kills . | . . . . Critical Parts Destroyed . | . . . . Critical Strikes . | . . . . Melee Attacks . | . . . . Impact . | . . . . Slashing . | . . . . Piercing . | . . . . Sneak Attacks . | . . . . Combat Hostiles . | . . . . Follow-up Attacks . | . . . . Damage Inflicted 532 | . 532 . . Guns 339 | . 339 . . Cannons . | . . . . Explosions 193 | . 193 . . Melee . | . . . . Ramming . | . . . . Kinetic . | . . . . Thermal 306 | . 306 . . Explosive . | . . . . Electromagnetic 226 | . 226 . . Impact . | . . . . Slashing . | . . . . Piercing . | . . . . Highest Corruption . | . . . . Average Corruption . | . . . . Corruption Purged . | . . . . Corruption Blocked . | . . . . Overload Shots . | . . . . Overflow Damage . | . . . . Projectiles . | . . . . Explosions . | . . . . Melee . | . . . . Knockbacks . | . . . . Impact . | . . . . Kinetic . | . . . . Secondary . | . . . . Self-Inflicted Damage 99 | . 99 . . Shots 3 | . 3 . . Rammed . | . . . . Targets Rammed . | . . . . Kicked . | . . . . Crushed . | . . . . Highest Temperature 303 | . 303 . . Average Temperature 78 | . 78 . . Received Heat Transfer 201 | . 105 . 96 Siege Activations . | . . . . Martial Activations . | . . . . Shielding Activations . | . . . . Robots Disrupted . | . . . . Combat Hostiles . | . . . . Robots Corrupted . | . . . . Combat Hostiles . | . . . . Parts Fried . | . . . . Impact Corruptions . | . . . . Robots Melted . | . . . . Combat Hostiles . | . . . . Parts Melted . | . . . . Heat Transferred 533 | . 533 . . Parts Sabotaged . | . . . . Parts Stolen . | . . . . Parts Stripped . | . . . . Power Chain Reactions 3 | . 3 . . Alert | -11 -10 -10 -10 ------- Run | Yrd Mat Min Sub Maximum Alert Level . | . . . . Low Security (%) 100 | 100 100 100 . Level 1 . | . . . . Level 2 . | . . . . Level 3 . | . . . . Level 4 . | . . . . Level 5 . | . . . . High Security . | . . . . Max Security . | . . . . Peak Influence 85 | . 85 25 . Initial 25 | . . 25 . Average 24 | . 40 5 . Influence Increases 194 | . 194 . . Destroy 0b10 Robot/C 120 | . 120 . . Destroy 0b10 Robot/NC 15 | . 15 . . Destroy Leader 24 | . 24 . . Successful Hack 9 | . 9 . . Destroy Structure 11 | . 11 . . Lose Combat Pursuer 15 | . 15 . . Influence Decreases 194 | . 129 65 . Entered New Map 40 | . . 40 . Time Decay 144 | . 119 25 . Lost Part 10 | . 10 . . Squads Dispatched 1 | . 1 . . Investigation . | . . . . Extermination . | . . . . Reinforcement 1 | . 1 . . Assault . | . . . . Garrison . | . . . . Intercept . | . . . . Searches Triggered . | . . . . Construction Impeded . | . . . . Haulers Reinforced . | . . . . Active Scanning Responses . | . . . . Cargo Convoy Interrupts . | . . . . Stealth | -11 -10 -10 -10 --------- Run | Yrd Mat Min Sub Distress Signals . | . . . . Communications Jammed . | . . . . Distress Signals . | . . . . Times Spotted 21 | . 11 2 8 Peak Tracking Total 8 | . 4 2 8 Tactical Retreats 1 | . 1 . . Traps | -11 -10 -10 -10 ------- Run | Yrd Mat Min Sub Traps Triggered 1 | . 1 . . Indirectly . | . . . . Trap Hack Attempts . | . . . . Triggered . | . . . . Disarmed . | . . . . Reprogrammed . | . . . . Reused . | . . . . Traps Extracted . | . . . . Installed . | . . . . Triggered . | . . . . Machines | -11 -10 -10 -10 ---------- Run | Yrd Mat Min Sub Machines Disabled . | . . . . Max in Single Turn . | . . . . Machines Repaired . | . . . . Machines Dismantled . | . . . . Machines Sabotaged . | . . . . Overloaded Fab Kills . | . . . . Hacking | -11 -10 -10 -10 --------- Run | Yrd Mat Min Sub Machines Accessed 4 | . 4 . . Terminals 4 | . 4 . . Fabricators . | . . . . Repair Stations . | . . . . Recycling Units . | . . . . Scanalyzers . | . . . . Garrison Access . | . . . . Total Hacks 13 | . 13 . . Successful 6 | . 6 . . Failed 7 | . 7 . . Catastrophic 1 | . 1 . . Database Lockouts . | . . . . Manual 13 | . 13 . . Terminals 13 | . 13 . . Fabricators . | . . . . Repair Stations . | . . . . Recycling Units . | . . . . Scanalyzers . | . . . . Garrison Access . | . . . . Terminal Hacks . | . . . . Fabricator Hacks . | . . . . Repair Station Hacks . | . . . . Recycling Unit Hacks . | . . . . Scanalyzer . | . . . . Garrison Access Hacks . | . . . . Unauthorized Hacks 6 | . 6 . . Terminals 6 | . 6 . . Botnet 1 | . 1 . . Operators 1 | . 1 . . Skim 4 | . 4 . . Fabricators . | . . . . Repair Stations . | . . . . Recycling Units . | . . . . Scanalyzers . | . . . . Garrison Access . | . . . . Data Cores Recovered . | . . . . Used . | . . . . Hacking Detections 3 | . 3 . . Full Trace Events . | . . . . Feedback Events . | . . . . Feedback Blocked . | . . . . Robot Schematics Acquired . | . . . . Robots Built . | . . . . Authchips . | . . . . Time . | . . . . Total Robot Build Rating . | . . . . Part Schematics Acquired . | . . . . Parts Built . | . . . . Authchips . | . . . . Time . | . . . . Total Part Build Rating . | . . . . Parts Repaired . | . . . . Time . | . . . . Parts Recycled . | . . . . Recycled Matter . | . . . . Retrieved Matter . | . . . . Retrieved Components . | . . . . Parts Scanalyzed . | . . . . Part Schematics Acquired . | . . . . Parts Damaged . | . . . . Bothacking | -11 -10 -10 -10 ------------ Run | Yrd Mat Min Sub Used RIF Installer . | . . . . Robots Hacked . | . . . . Non-combat . | . . . . Combat . | . . . . Robot Hacks Applied . | . . . . Relay Couplers Released . | . . . . Fabnet Peak Effective % . | . . . . Robots Rewired . | . . . . Allies Hacked . | . . . . Hacks Repelled . | . . . . Allies | -11 -10 -10 -10 -------- Run | Yrd Mat Min Sub Total Allies . | . . . . Largest Group . | . . . . Highest-Rated Group . | . . . . Highest-Rated Ally . | . . . . Total Orders . | . . . . Ally Attacks . | . . . . Total Damage . | . . . . Kills . | . . . . Allies Corrupted . | . . . . Allies Melted . | . . . . Intel | -11 -10 -10 -10 ------- Run | Yrd Mat Min Sub Active Infowar (turns) . | . . . . Robot Analysis Total . | . . . . Derelict Logs Recovered . | . . . . Drone Launches . | . . . . Drone Recoveries . | . . . . Exploration | -11 -10 -10 -10 ------------- Run | Yrd Mat Min Sub Turns Passed 709 | 43 294 175 197 Spaces Moved 599 | 39 216 160 184 Core 13 | 1 . . 12 Treads . | . . . . Legs . | . . . . Wheels 586 | 38 216 160 172 Hover . | . . . . Flight . | . . . . Fastest Speed 50 | 50 90 110 95 Average Speed 102 | 87 95 110 105 Slowest Speed 300 | 90 110 110 300 Overloaded Moves . | . . . . Propulsion Burnouts . | . . . . Robots Hopped . | . . . . Potential Cave-ins . | . . . . Cave-ins Triggered . | . . . . Exploration Rate (%) 26 | 3 57 25 19 Regions Visited 3 Branch Regions 2 Pre-discovered Areas . | . . . . Known Exits Taken . | . . . . Unknown Exits Taken 3 | 1 1 1 . Scrap Searched . | . . . . Spaces Dug . | . . . . Terrain Destroyed 7 | . 7 . . Melee . | . . . . Projectile . | . . . . AOE 7 | . 7 . . Terrain Rammed . | . . . . Walls Destroyed . | . . . . Machines Disabled . | . . . . Actions | -11 -10 -10 -10 --------- Run | Yrd Mat Min Sub Total 646 | 44 256 159 187 Wait 12 | . 12 . . Move 596 | 38 215 159 184 Hop . | . . . . Pick Up 1 | . 1 . . Fast Attach 9 | 6 3 . . Attach 2 | . 1 . 1 Detach 1 | . 1 . . Swap . | . . . . Drop 2 | . . . 2 Fire 23 | . 23 . . Melee . | . . . . Ram . | . . . . Kick . | . . . . Crush . | . . . . Escape Stasis . | . . . . Rewire . | . . . . Trap . | . . . . Miscellaneous . | . . . . Route ------- -11/Scrapyard -10/Materials -10/Mines (discovered 3 exits: [*Mat x2] / [*Sub]) -10/Subcaves (discovered 1 exit: [*Rec]) History --------- Turn | Location | Event 6 | -11/Scrapyard | Discovered new exit (range 16) 44 | -11/Scrapyard | Entered Materials 302 | -10/Materials | Build established: Mutant 321 | -10/Materials | Discovered new exit (range 15) 338 | -10/Materials | Entered Mines 338 | -10/Mines | Discovered new exit (range 10) 440 | -10/Mines | Discovered new exit (range 11) 506 | -10/Mines | Discovered new exit (range 6) 513 | -10/Mines | Entered Subcaves 566 | -10/Subcaves | A swath of the cavern ceiling suddenly collapsed 675 | -10/Subcaves | A swath of the cavern ceiling suddenly collapsed 694 | -10/Subcaves | Core integrity fell below 50% 708 | -10/Subcaves | Core integrity fell below 20% 708 | -10/Subcaves | Discovered new exit (range 13) 710 | -10/Subcaves | Destroyed by S-10 Pest with Light Assault Rifle Last Messages --------------- 00386_ U-05 Engineer builds a Wall. 00394_ K-01 Serf collects debris. 00405_ K-01 Serf cleans the Plasma Injector. 00440_ EXIT=FOUND 00459_ Med. Laser destroyed. 00506_ EXIT=FOUND LOCATION=UNKNOWN AMBIENT_HEAT=-10 GOAL=ESCAPE A swath of the cavern ceiling suddenly collapses. 00639_ Ion Engine destroyed. 00641_ EM Pulse Gun destroyed. A swath of the cavern ceiling suddenly collapses. 00694_ 8N-QDY(R) destroyed. 00695_ Wheel destroyed. 00698_ Dropped Med. Storage Unit. 00699_ Dropped Med. Laser. 00701_ Subatomizers dissect the Med. Storage Unit. 00708_ S-10 Pest springs to life. 00708_ EXIT=FOUND Map ----- +----------------------------------------------------+ | ?????????????????????????????????????????????????? | | ?????????????????????????????????????????????????? | | ?????????????????????????????????????????????????? | | ?????????????????????????????????????????????????? | | ?????????????????????????????????????????????????? | | ?????????????????????????????????????????????????? | | ?????????????????????????????????????????????????? | | ?????????????????????????????????????????????????? | | ?????????????????????????????????????????????????? | | ?????????????????????????????????????????????????? | | ?????????????????????????????????????????????????? | | ?????????????????????????????????????????????????? | | ?????????????????????????????????????????????????? | | ?????????????????????????????????????????????????? | | ?????????????????????????????????????????????????? | | ?????????????????????????????????????????????????? | | ?????????????????????????????????????????????????? | | ?????????????????????????????????????????????????? | | ????????????????????????#?#??????????????????????? | | ????????????????????????$# ?????#####????????????? | | ???????????????????????? ????? """#???????????? | | ????????????????????????< #???? "#???????????? | | ??????????????????????### $?### "#??########?# | | ??????????????????????# # ## s t""##?# # ### | | ?????????????????????## < < s <#?# | | ?????????????????????# @ s t""#??# | | ?????????????????????# s# "#?## #### # | | ?????????????????????## ##???????## #??##### | | ??????????????????????## #????????# #??????? | | ???????????????????????# ##?????### ##??# | | ???????????????????????## ###??## ### # | | ????????????????????????## ##?# | | ????????????????????????### ### | | ?????????????????????#### #R ## ## # # | | ?????????????######### ![ ########### | | ?????????????# " " # #????????? | | ?????????????# # #????????? | | ?????????????# " # ##### # #????????? | | ?????????????#& &##% ##### R # ####????????? | | ?????????????## "" ## " ## #???????????? | | ??????????????##"#### ### "#### ##??????????? | | ????????????????????# #### "##?# #??????????? | | ????????????????????# ###?#"""#?# #??????????? | | ??????????????????# ##??#"####?## #?????????? | | ?????????????????# ???#" ?## ##?????????? | | ?????????????????# ?? # ## ??##??????????? | | ?????????????????# ##?#### ??# ?????????????? | | ?????????????????# ## ??????##???# #???????????? | | ?????????????????##? ????????????####???????????? | | ???????????????????? ???????????????????????????? | +----------------------------------------------------+ Best States ------------- Heat Dissipation 25 Energy Generation 10 Energy Capacity 250 Matter Stores 300 Matter Capacity 300 Sight Range 16 Terrain Scan Density 10 Evasion (%) 42 Item Schematics ----------------- None Robot Schematics ------------------ None Fabricated ------------ Nothing Repaired ---------- Nothing Alien Tech Used ----------------- None Achievements -------------- None Challenges ------------ None Game ------ Seed HellfireMissileTrident Manual? 0 Play Time 00:09:07 Cumulative 230.0 hours Start 2025.05.13 @ 23:42:18 End 2025.05.13 @ 23:49:45 Sessions 1 Manual Loads 0 Difficulty Rogue Special Mode None Game No. 111 Rogue 68 Adventurer 43 Explorer 0 Win Type - Total 6 Types 4/0/1/0/0/0/0/1/0/0 Lore% 70 Gallery% 66 Achievement% 61 Wizard Run 0 Options --------- Layout 0 ASCII 0 Keyboard 0 Movement Mouse Keybinds 0 Fullscreen 1 Font 24/Smallcaps Map View 76x50 Zoom Use 0% Tactical HUD 1 Map Filters NONE Filters NONE Steam 1 RUN: 1be4e4cb-89c9-4d9e-9fdb-08abce106635